[Event "Early-Titled-Tuesday-Blitz-February-13-2024"]
[Site "Chess.com"]
[Date "2024.02.13"]
[Round "7"]
[White "DenLaz"]
[Black "Hikaru"]
[Result "1/2-1/2"]
[WhiteElo "3057"]
[BlackElo "3363"]
[TimeControl "180+1"]
[EndTime "9:23:43 PST"]
[Termination "Game drawn by 50-move rule"]

1. d4 {[%clk 0:03:00.2]} 1... g6 {[%clk 0:02:58.5]} 2. c4 {[%clk 0:03:00.5]}
2... Bg7 {[%clk 0:02:59]} 3. Nf3 {[%clk 0:03:01.1]} 3... d6 {[%clk 0:02:59.3]}
4. g3 {[%clk 0:03:01.5]} 4... Nc6 {[%clk 0:02:58.9]} 5. Bg2 {[%clk 0:03:01]}
5... Nf6 {[%clk 0:02:59.5]} 6. Nc3 {[%clk 0:03:00.9]} 6... O-O {[%clk
0:03:00.1]} 7. O-O {[%clk 0:03:01.2]} 7... Bg4 {[%clk 0:03:00.2]} 8. d5 {[%clk
0:02:57.7]} 8... Na5 {[%clk 0:02:59]} 9. b3 {[%clk 0:02:56.5]} 9... c5 {[%clk
0:02:52.9]} 10. Bd2 {[%clk 0:02:52.7]} 10... a6 {[%clk 0:02:52]} 11. h3 {[%clk
0:02:52.2]} 11... Bd7 {[%clk 0:02:44.6]} 12. e4 {[%clk 0:02:46.1]} 12... e5
{[%clk 0:02:36.2]} 13. dxe6 {[%clk 0:02:30.8]} 13... Bxe6 {[%clk 0:02:36.4]} 14.
Rc1 {[%clk 0:02:30.4]} 14... Nc6 {[%clk 0:02:30.2]} 15. Bf4 {[%clk 0:02:30]}
15... Ne8 {[%clk 0:02:30.5]} 16. Qd2 {[%clk 0:02:29.4]} 16... f6 {[%clk
0:02:26.6]} 17. Rfd1 {[%clk 0:02:27.4]} 17... Ne5 {[%clk 0:02:26.8]} 18. Bxe5
{[%clk 0:02:09.4]} 18... fxe5 {[%clk 0:02:25.9]} 19. Ng5 {[%clk 0:02:10]} 19...
Qd7 {[%clk 0:02:19.4]} 20. Na4 {[%clk 0:01:55.5]} 20... Qe7 {[%clk 0:02:19.5]}
21. Nxe6 {[%clk 0:01:38]} 21... Qxe6 {[%clk 0:02:20.4]} 22. Nb6 {[%clk
0:01:38.5]} 22... Rd8 {[%clk 0:02:19.6]} 23. Qd5 {[%clk 0:01:33.4]} 23... Qf7
{[%clk 0:02:19.7]} 24. Qxf7+ {[%clk 0:01:27.2]} 24... Rxf7 {[%clk 0:02:18.6]}
25. Nd5 {[%clk 0:01:27.8]} 25... Bh6 {[%clk 0:02:17]} 26. Rc3 {[%clk 0:01:25.8]}
26... Ng7 {[%clk 0:02:17.1]} 27. b4 {[%clk 0:01:17.4]} 27... cxb4 {[%clk
0:02:17]} 28. Nxb4 {[%clk 0:01:16.9]} 28... Ne6 {[%clk 0:02:17.6]} 29. Rc2
{[%clk 0:01:00.7]} 29... Nd4 {[%clk 0:02:14.5]} 30. Rb2 {[%clk 0:01:01.2]} 30...
Rc8 {[%clk 0:02:07.5]} 31. Bf1 {[%clk 0:01:01.3]} 31... Bf8 {[%clk 0:02:06.1]}
32. Nd5 {[%clk 0:01:01.1]} 32... Ne6 {[%clk 0:01:59.6]} 33. h4 {[%clk
0:00:57.7]} 33... Nc5 {[%clk 0:01:59.9]} 34. Bg2 {[%clk 0:00:50.7]} 34... h5
{[%clk 0:01:58.1]} 35. Rdb1 {[%clk 0:00:48.3]} 35... Rd8 {[%clk 0:01:55.5]} 36.
Rd2 {[%clk 0:00:43]} 36... Bh6 {[%clk 0:01:55.6]} 37. Rc2 {[%clk 0:00:42.7]}
37... Kf8 {[%clk 0:01:56.2]} 38. Rd1 {[%clk 0:00:41]} 38... Ke8 {[%clk 0:01:56]}
39. Nb4 {[%clk 0:00:41.2]} 39... Ke7 {[%clk 0:01:50.4]} 40. Nd3 {[%clk
0:00:40.1]} 40... Ne6 {[%clk 0:01:48]} 41. Rb2 {[%clk 0:00:40.3]} 41... Kf8
{[%clk 0:01:37.6]} 42. Rdb1 {[%clk 0:00:39.8]} 42... Rb8 {[%clk 0:01:30.8]} 43.
Rb6 {[%clk 0:00:38.9]} 43... Rd8 {[%clk 0:01:09.5]} 44. Rxb7 {[%clk 0:00:34.9]}
44... Rxb7 {[%clk 0:01:09.3]} 45. Rxb7 {[%clk 0:00:35.8]} 45... Nc5 {[%clk
0:01:10.1]} 46. Nxc5 {[%clk 0:00:35.2]} 46... dxc5 {[%clk 0:01:11]} 47. Rb6
{[%clk 0:00:35.5]} 47... Rd1+ {[%clk 0:01:11.4]} 48. Bf1 {[%clk 0:00:35.7]}
48... Kf7 {[%clk 0:01:09]} 49. Rxa6 {[%clk 0:00:35.7]} 49... Ra1 {[%clk
0:01:08.9]} 50. Ra5 {[%clk 0:00:33.2]} 50... Bd2 {[%clk 0:01:07.8]} 51. Rxc5
{[%clk 0:00:20]} 51... Rxa2 {[%clk 0:01:08.2]} 52. Rc7+ {[%clk 0:00:19.9]} 52...
Ke8 {[%clk 0:01:01.5]} 53. Rc6 {[%clk 0:00:19.5]} 53... Kf7 {[%clk 0:00:59.6]}
54. Rc7+ {[%clk 0:00:18.8]} 54... Ke8 {[%clk 0:00:57.2]} 55. c5 {[%clk
0:00:10.6]} 55... Be1 {[%clk 0:00:49.3]} 56. Rf7 {[%clk 0:00:10.3]} 56... Rc2
{[%clk 0:00:44.8]} 57. Rf3 {[%clk 0:00:07.9]} 57... Ke7 {[%clk 0:00:36.7]} 58.
Bh3 {[%clk 0:00:07.7]} 58... Rxc5 {[%clk 0:00:36.1]} 59. Re3 {[%clk 0:00:07.5]}
59... Rc1 {[%clk 0:00:36.3]} 60. Kg2 {[%clk 0:00:07.8]} 60... Bb4 {[%clk
0:00:35.8]} 61. Rd3 {[%clk 0:00:07.8]} 61... Bd6 {[%clk 0:00:34.4]} 62. Rf3
{[%clk 0:00:06.9]} 62... Rc2 {[%clk 0:00:34.3]} 63. g4 {[%clk 0:00:07.2]} 63...
hxg4 {[%clk 0:00:33.6]} 64. Bxg4 {[%clk 0:00:08.1]} 64... Rc4 {[%clk 0:00:34.1]}
65. Re3 {[%clk 0:00:07.9]} 65... Bc5 {[%clk 0:00:34.7]} 66. Re2 {[%clk
0:00:08.5]} 66... Kf6 {[%clk 0:00:34.4]} 67. Kf3 {[%clk 0:00:08.6]} 67... Rc3+
{[%clk 0:00:34.6]} 68. Kg2 {[%clk 0:00:08.8]} 68... Rc4 {[%clk 0:00:35]} 69. Kf3
{[%clk 0:00:08]} 69... Kg7 {[%clk 0:00:33.8]} 70. h5 {[%clk 0:00:08]} 70... gxh5
{[%clk 0:00:26]} 71. Bxh5 {[%clk 0:00:08.9]} 71... Bd4 {[%clk 0:00:26.3]} 72.
Kg4 {[%clk 0:00:09]} 72... Kf6 {[%clk 0:00:26.4]} 73. Ra2 {[%clk 0:00:08.7]}
73... Rb4 {[%clk 0:00:22.4]} 74. Rc2 {[%clk 0:00:08.4]} 74... Rb6 {[%clk
0:00:15.3]} 75. f3 {[%clk 0:00:08.5]} 75... Ke7 {[%clk 0:00:14.9]} 76. Rd2
{[%clk 0:00:08.4]} 76... Rf6 {[%clk 0:00:14.6]} 77. Kg3 {[%clk 0:00:08]} 77...
Rf8 {[%clk 0:00:14.8]} 78. Bg4 {[%clk 0:00:08.5]} 78... Be3 {[%clk 0:00:13.9]}
79. Rd7+ {[%clk 0:00:08.5]} 79... Kf6 {[%clk 0:00:14.5]} 80. Bf5 {[%clk
0:00:08.8]} 80... Rg8+ {[%clk 0:00:13.7]} 81. Bg4 {[%clk 0:00:08.8]} 81... Bf4+
{[%clk 0:00:13.8]} 82. Kg2 {[%clk 0:00:09.4]} 82... Rb8 {[%clk 0:00:13.7]} 83.
Kf1 {[%clk 0:00:06.6]} 83... Rb2 {[%clk 0:00:13.4]} 84. Rh7 {[%clk 0:00:07]}
84... Kg6 {[%clk 0:00:13.7]} 85. Rh5 {[%clk 0:00:07.3]} 85... Kf6 {[%clk
0:00:13]} 86. Rf5+ {[%clk 0:00:07.6]} 86... Ke7 {[%clk 0:00:13.4]} 87. Rh5
{[%clk 0:00:07.6]} 87... Kd6 {[%clk 0:00:14]} 88. Rh7 {[%clk 0:00:07.9]} 88...
Kc5 {[%clk 0:00:14.5]} 89. Rd7 {[%clk 0:00:08.5]} 89... Kc4 {[%clk 0:00:14.9]}
90. Rd5 {[%clk 0:00:07.8]} 90... Kc3 {[%clk 0:00:15.3]} 91. Rd7 {[%clk
0:00:07.8]} 91... Be3 {[%clk 0:00:15.4]} 92. Rd8 {[%clk 0:00:05.2]} 92... Bd4
{[%clk 0:00:15.6]} 93. Ra8 {[%clk 0:00:04.1]} 93... Kd3 {[%clk 0:00:15.7]} 94.
Ra3+ {[%clk 0:00:04.8]} 94... Bc3 {[%clk 0:00:16.3]} 95. Bf5 {[%clk 0:00:03.5]}
95... Kd4 {[%clk 0:00:16.8]} 96. Bg4 {[%clk 0:00:03.8]} 96... Bb4 {[%clk
0:00:17.4]} 97. Ra8 {[%clk 0:00:03.5]} 97... Ke3 {[%clk 0:00:17.4]} 98. Rc8
{[%clk 0:00:04]} 98... Ra2 {[%clk 0:00:12.7]} 99. Rc4 {[%clk 0:00:04.2]} 99...
Bd2 {[%clk 0:00:11.8]} 100. Rc8 {[%clk 0:00:04]} 100... Bb4 {[%clk 0:00:10]}
101. Rc4 {[%clk 0:00:03.9]} 101... Be7 {[%clk 0:00:10.7]} 102. Rc8 {[%clk
0:00:04]} 102... Bh4 {[%clk 0:00:10.9]} 103. Rc3+ {[%clk 0:00:04.6]} 103... Kf4
{[%clk 0:00:11.4]} 104. Rd3 {[%clk 0:00:05.1]} 104... Rf2+ {[%clk 0:00:11.7]}
105. Kg1 {[%clk 0:00:05.2]} 105... Ra2 {[%clk 0:00:12.6]} 106. Kf1 {[%clk
0:00:05.7]} 106... Bf2 {[%clk 0:00:13]} 107. Rb3 {[%clk 0:00:04.6]} 107... Bd4
{[%clk 0:00:13.2]} 108. Rd3 {[%clk 0:00:05]} 108... Kg3 {[%clk 0:00:13.3]} 109.
Ke1 {[%clk 0:00:05.5]} 109... Ra1+ {[%clk 0:00:13.1]} 110. Kd2 {[%clk
0:00:05.9]} 110... Kf4 {[%clk 0:00:13.8]} 111. Kc2 {[%clk 0:00:06.4]} 111... Ra6
{[%clk 0:00:13.9]} 112. Kb3 {[%clk 0:00:06.9]} 112... Rc6 {[%clk 0:00:14.6]}
113. Kb4 {[%clk 0:00:06.6]} 113... Rc7 {[%clk 0:00:14.8]} 114. Kb5 {[%clk
0:00:07]} 114... Rc5+ {[%clk 0:00:14.7]} 115. Kb4 {[%clk 0:00:07.4]} 115... Rc1
{[%clk 0:00:15.6]} 116. Kb5 {[%clk 0:00:07.7]} 116... Kg5 {[%clk 0:00:16.1]}
117. Rb3 {[%clk 0:00:08.2]} 117... Kf6 {[%clk 0:00:16.3]} 118. Rb4 {[%clk
0:00:08.7]} 118... Ke7 {[%clk 0:00:16.8]} 119. Rc4 {[%clk 0:00:09.3]} 119...
Rb1+ {[%clk 0:00:16.7]} 120. Kc6 {[%clk 0:00:09.7]} 120... Rb6+ {[%clk
0:00:17.4]} 121. Kc7 {[%clk 0:00:09.5]} 121... Ra6 {[%clk 0:00:17.8]} 122. Kb7
{[%clk 0:00:09.6]} 122... Ra7+ {[%clk 0:00:17.5]} 123. Kc6 {[%clk 0:00:08.8]}
123... Ra6+ {[%clk 0:00:18.4]} 124. Kb7 {[%clk 0:00:08.8]} 124... Rb6+ {[%clk
0:00:18.5]} 125. Kc7 {[%clk 0:00:09.4]} 1/2-1/2

[Event "Early-Titled-Tuesday-Blitz-February-13-2024"]
[Site "Chess.com"]
[Date "2024.02.13"]
[Round "7"]
[White "Sam_ChessMood"]
[Black "Oleksandr_Bortnyk"]
[Result "1/2-1/2"]
[WhiteElo "2934"]
[BlackElo "3069"]
[TimeControl "180+1"]
[EndTime "9:24:38 PST"]
[Termination "Game drawn - insufficient material"]

1. d4 {[%clk 0:03:00]} 1... Nf6 {[%clk 0:02:59.1]} 2. c4 {[%clk 0:02:59.7]} 2...
b6 {[%clk 0:02:59.3]} 3. Nc3 {[%clk 0:02:59.5]} 3... Bb7 {[%clk 0:03:00]} 4. Qc2
{[%clk 0:02:59.9]} 4... g6 {[%clk 0:02:59.8]} 5. e4 {[%clk 0:02:59.4]} 5... d6
{[%clk 0:03:00.2]} 6. Nf3 {[%clk 0:02:47]} 6... Bg7 {[%clk 0:03:00.4]} 7. Be2
{[%clk 0:02:45.6]} 7... O-O {[%clk 0:03:00.2]} 8. O-O {[%clk 0:02:45.7]} 8... c5
{[%clk 0:02:57.9]} 9. d5 {[%clk 0:02:44]} 9... Na6 {[%clk 0:02:58.2]} 10. Bf4
{[%clk 0:02:40]} 10... Nb4 {[%clk 0:02:46.9]} 11. Qd2 {[%clk 0:02:37.7]} 11...
Re8 {[%clk 0:02:35.6]} 12. Rad1 {[%clk 0:02:32.3]} 12... e5 {[%clk 0:02:23.7]}
13. dxe6 {[%clk 0:02:26]} 13... Rxe6 {[%clk 0:02:23.5]} 14. e5 {[%clk
0:02:00.5]} 14... Nh5 {[%clk 0:02:09.8]} 15. Be3 {[%clk 0:01:43.8]} 15... Bxe5
{[%clk 0:02:04.4]} 16. Nxe5 {[%clk 0:01:42.5]} 16... Rxe5 {[%clk 0:02:05.3]} 17.
a3 {[%clk 0:01:26.2]} 17... Nc6 {[%clk 0:01:56.8]} 18. Qxd6 {[%clk 0:01:14.1]}
18... Qxd6 {[%clk 0:01:38.5]} 19. Rxd6 {[%clk 0:01:15]} 19... Rae8 {[%clk
0:01:14.4]} 20. Bf3 {[%clk 0:01:01]} 20... Na5 {[%clk 0:01:13.5]} 21. Bxb7
{[%clk 0:00:42.1]} 21... Nxb7 {[%clk 0:01:14.4]} 22. Rd7 {[%clk 0:00:42.6]}
22... Na5 {[%clk 0:01:12.6]} 23. Nd5 {[%clk 0:00:30.4]} 23... Nxc4 {[%clk
0:01:08.1]} 24. g4 {[%clk 0:00:30.4]} 24... Rxd5 {[%clk 0:00:59.8]} 25. Rxd5
{[%clk 0:00:30]} 25... Nf6 {[%clk 0:01:00.7]} 26. Rd3 {[%clk 0:00:19.4]} 26...
Nxb2 {[%clk 0:00:58.5]} 27. Rc3 {[%clk 0:00:17.2]} 27... Nd5 {[%clk 0:00:46.9]}
28. Rc2 {[%clk 0:00:15.7]} 28... Nxe3 {[%clk 0:00:40.4]} 29. fxe3 {[%clk
0:00:14.4]} 29... Nd3 {[%clk 0:00:40.6]} 30. Rd1 {[%clk 0:00:11.2]} 30... c4
{[%clk 0:00:32.3]} 31. a4 {[%clk 0:00:11.4]} 31... Re4 {[%clk 0:00:30.8]} 32. h3
{[%clk 0:00:09.2]} 32... a6 {[%clk 0:00:31]} 33. Rb1 {[%clk 0:00:09.1]} 33... b5
{[%clk 0:00:20.4]} 34. axb5 {[%clk 0:00:09]} 34... axb5 {[%clk 0:00:21.3]} 35.
Rxb5 {[%clk 0:00:09.3]} 35... Kg7 {[%clk 0:00:18.6]} 36. Rb7 {[%clk 0:00:08.2]}
36... Rxe3 {[%clk 0:00:11]} 37. Rxc4 {[%clk 0:00:04.9]} 37... Rxh3 {[%clk
0:00:11.1]} 38. Rd4 {[%clk 0:00:02.7]} 38... Ne5 {[%clk 0:00:07.8]} 39. Kg2
{[%clk 0:00:02.6]} 39... Re3 {[%clk 0:00:07.9]} 40. Rf4 {[%clk 0:00:02.2]} 40...
h6 {[%clk 0:00:07.4]} 41. Rc7 {[%clk 0:00:01.7]} 41... Ra3 {[%clk 0:00:06.5]}
42. Re4 {[%clk 0:00:01.7]} 42... Ra5 {[%clk 0:00:06.2]} 43. Rd4 {[%clk
0:00:01.9]} 43... Kf6 {[%clk 0:00:06]} 44. Kg3 {[%clk 0:00:02.4]} 44... Ra3+
{[%clk 0:00:05.6]} 45. Kg2 {[%clk 0:00:02.3]} 45... Kg5 {[%clk 0:00:06.2]} 46.
Rc5 {[%clk 0:00:02.1]} 46... Ra2+ {[%clk 0:00:06.6]} 47. Kg3 {[%clk 0:00:02.1]}
47... f6 {[%clk 0:00:07.5]} 48. Rb5 {[%clk 0:00:02.4]} 48... Ra3+ {[%clk
0:00:07.8]} 49. Kf2 {[%clk 0:00:02.4]} 49... Rh3 {[%clk 0:00:06.7]} 50. Kg2
{[%clk 0:00:02.4]} 50... Re3 {[%clk 0:00:06.7]} 51. Kf2 {[%clk 0:00:02.5]} 51...
Rc3 {[%clk 0:00:06.6]} 52. Kg2 {[%clk 0:00:02.5]} 52... Rc2+ {[%clk 0:00:07.3]}
53. Kg3 {[%clk 0:00:02.6]} 53... Rc1 {[%clk 0:00:08.2]} 54. Kf2 {[%clk
0:00:02.7]} 54... Rc7 {[%clk 0:00:07.8]} 55. Kg3 {[%clk 0:00:02.8]} 55... Ra7
{[%clk 0:00:05.8]} 56. Kf2 {[%clk 0:00:03.1]} 56... Ra1 {[%clk 0:00:06.4]} 57.
Kg3 {[%clk 0:00:03.1]} 57... Rg1+ {[%clk 0:00:06.4]} 58. Kh3 {[%clk 0:00:03.5]}
58... Re1 {[%clk 0:00:04.9]} 59. Kg3 {[%clk 0:00:03.5]} 59... Re3+ {[%clk
0:00:04.6]} 60. Kf2 {[%clk 0:00:03.9]} 60... Rf3+ {[%clk 0:00:03.6]} 61. Kg2
{[%clk 0:00:04.2]} 61... Rc3 {[%clk 0:00:03.2]} 62. Kf2 {[%clk 0:00:04.3]} 62...
Rc8 {[%clk 0:00:03.1]} 63. Kg3 {[%clk 0:00:04.5]} 63... Rh8 {[%clk 0:00:02.4]}
64. Rc5 {[%clk 0:00:03.9]} 64... h5 {[%clk 0:00:02.2]} 65. gxh5 {[%clk
0:00:04.5]} 65... Rxh5 {[%clk 0:00:02.9]} 66. Rc3 {[%clk 0:00:04.6]} 66... Rh1
{[%clk 0:00:02.7]} 67. Rd8 {[%clk 0:00:04.6]} 67... Rg1+ {[%clk 0:00:02.8]} 68.
Kf2 {[%clk 0:00:04.7]} 68... Ra1 {[%clk 0:00:03.7]} 69. Rd4 {[%clk 0:00:04.4]}
69... Kf5 {[%clk 0:00:04]} 70. Rd2 {[%clk 0:00:03.7]} 70... g5 {[%clk
0:00:04.5]} 71. Ke2 {[%clk 0:00:04.1]} 71... Rh1 {[%clk 0:00:04]} 72. Rd4 {[%clk
0:00:04]} 72... g4 {[%clk 0:00:04.2]} 73. Rc5 {[%clk 0:00:03.5]} 73... Kg5
{[%clk 0:00:04.4]} 74. Kf2 {[%clk 0:00:03.6]} 74... Rh2+ {[%clk 0:00:04.9]} 75.
Kg3 {[%clk 0:00:03.4]} 75... Rh3+ {[%clk 0:00:05.2]} 76. Kg2 {[%clk 0:00:04]}
76... Re3 {[%clk 0:00:05.7]} 77. Rdd5 {[%clk 0:00:03.9]} 77... Re4 {[%clk
0:00:04.9]} 78. Rd8 {[%clk 0:00:03.5]} 78... Kf4 {[%clk 0:00:05.2]} 79. Rc2
{[%clk 0:00:03]} 79... f5 {[%clk 0:00:05.3]} 80. Rf8 {[%clk 0:00:03]} 80... Nf3
{[%clk 0:00:05]} 81. Rf2 {[%clk 0:00:03]} 81... Re3 {[%clk 0:00:05.3]} 82. Rf7
{[%clk 0:00:02.2]} 82... Rd3 {[%clk 0:00:05.7]} 83. Rf8 {[%clk 0:00:02.4]} 83...
Kg5 {[%clk 0:00:05.4]} 84. Rg8+ {[%clk 0:00:02.5]} 84... Kf6 {[%clk 0:00:05.4]}
85. Rf8+ {[%clk 0:00:02.8]} 85... Ke5 {[%clk 0:00:06]} 86. Re8+ {[%clk
0:00:03.1]} 86... Kf4 {[%clk 0:00:06.7]} 87. Rf8 {[%clk 0:00:03.6]} 87... Rd1
{[%clk 0:00:07.2]} 88. Rxf3+ {[%clk 0:00:03]} 88... gxf3+ {[%clk 0:00:07.3]} 89.
Kf2 {[%clk 0:00:03.7]} 89... Rd2+ {[%clk 0:00:05.7]} 90. Kf1 {[%clk 0:00:04.2]}
90... Ra2 {[%clk 0:00:03.3]} 91. Rf7 {[%clk 0:00:04]} 91... Ra1+ {[%clk
0:00:03.1]} 92. Kf2 {[%clk 0:00:03.8]} 92... Ra3 {[%clk 0:00:04]} 93. Rf8 {[%clk
0:00:03.7]} 93... Ra2+ {[%clk 0:00:04.5]} 94. Kf1 {[%clk 0:00:03.1]} 94... Ra5
{[%clk 0:00:05.4]} 95. Kf2 {[%clk 0:00:02.4]} 95... Re5 {[%clk 0:00:06.1]} 96.
Rf7 {[%clk 0:00:02.5]} 96... Rd5 {[%clk 0:00:06.2]} 97. Rf8 {[%clk 0:00:02.8]}
97... Ke4 {[%clk 0:00:05.7]} 98. Re8+ {[%clk 0:00:02.8]} 98... Kf4 {[%clk
0:00:06.4]} 99. Rf8 {[%clk 0:00:03.2]} 99... Rc5 {[%clk 0:00:06.8]} 100. Kf1
{[%clk 0:00:02.4]} 100... Rc2 {[%clk 0:00:05.7]} 101. Rf7 {[%clk 0:00:01.9]}
101... Rb2 {[%clk 0:00:06]} 102. Rf8 {[%clk 0:00:02.2]} 102... Ra2 {[%clk
0:00:06.3]} 103. Rf7 {[%clk 0:00:02.7]} 103... f2 {[%clk 0:00:06]} 104. Rf8
{[%clk 0:00:03.1]} 104... Ke4 {[%clk 0:00:06.5]} 105. Rf7 {[%clk 0:00:02.6]}
105... Rb2 {[%clk 0:00:06.3]} 106. Rc7 {[%clk 0:00:02.3]} 106... Kf4 {[%clk
0:00:06]} 107. Rc3 {[%clk 0:00:02.2]} 107... Kg4 {[%clk 0:00:06.4]} 108. Ra3
{[%clk 0:00:02.4]} 108... Rc2 {[%clk 0:00:06]} 109. Rb3 {[%clk 0:00:02.6]}
109... Ra2 {[%clk 0:00:06.2]} 110. Rc3 {[%clk 0:00:03]} 110... Rb2 {[%clk
0:00:06.9]} 111. Ra3 {[%clk 0:00:03.1]} 111... Kf4 {[%clk 0:00:06.5]} 112. Rf3+
{[%clk 0:00:03]} 112... Ke4 {[%clk 0:00:06.5]} 113. Ra3 {[%clk 0:00:03.1]}
113... Rc2 {[%clk 0:00:07]} 114. Rb3 {[%clk 0:00:03.4]} 114... Rd2 {[%clk
0:00:07.3]} 115. Ra3 {[%clk 0:00:03.6]} 115... Rb2 {[%clk 0:00:07.4]} 116. Rc3
{[%clk 0:00:03.7]} 116... Ra2 {[%clk 0:00:06]} 117. Rb3 {[%clk 0:00:04.1]}
117... Kf4 {[%clk 0:00:06.3]} 118. Rc3 {[%clk 0:00:04.3]} 118... Kg4 {[%clk
0:00:07.2]} 119. Rb3 {[%clk 0:00:04.7]} 119... f4 {[%clk 0:00:07.8]} 120. Rc3
{[%clk 0:00:05.2]} 120... Rb2 {[%clk 0:00:08.5]} 121. Ra3 {[%clk 0:00:04.9]}
121... Rc2 {[%clk 0:00:08.9]} 122. Rb3 {[%clk 0:00:05.2]} 122... Kf5 {[%clk
0:00:09.3]} 123. Ra3 {[%clk 0:00:05.4]} 123... Ke4 {[%clk 0:00:09.4]} 124. Rb3
{[%clk 0:00:05.9]} 124... Kf5 {[%clk 0:00:10.1]} 125. Ra3 {[%clk 0:00:06.2]}
125... Kg4 {[%clk 0:00:11]} 126. Rb3 {[%clk 0:00:06.6]} 126... Rd2 {[%clk
0:00:10.8]} 127. Ra3 {[%clk 0:00:06.8]} 127... Rd8 {[%clk 0:00:11.7]} 128. Kxf2
{[%clk 0:00:06.6]} 128... Rd2+ {[%clk 0:00:11.8]} 129. Kf1 {[%clk 0:00:07.1]}
129... Rb2 {[%clk 0:00:12.4]} 130. Rc3 {[%clk 0:00:06.5]} 130... Ra2 {[%clk
0:00:12.5]} 131. Rb3 {[%clk 0:00:06.8]} 131... Ra7 {[%clk 0:00:12.4]} 132. Kf2
{[%clk 0:00:06.7]} 132... Rh7 {[%clk 0:00:13.3]} 133. Rc3 {[%clk 0:00:06.4]}
133... Rh2+ {[%clk 0:00:13.7]} 134. Kf1 {[%clk 0:00:06.6]} 134... Rd2 {[%clk
0:00:14.3]} 135. Rb3 {[%clk 0:00:06.5]} 135... Kf5 {[%clk 0:00:14.4]} 136. Ra3
{[%clk 0:00:06.3]} 136... Ke4 {[%clk 0:00:14.7]} 137. Rb3 {[%clk 0:00:06.8]}
137... Rd3 {[%clk 0:00:15.4]} 138. Rxd3 {[%clk 0:00:06.6]} 138... Kxd3 {[%clk
0:00:16.3]} 139. Kf2 {[%clk 0:00:07.1]} 139... Ke4 {[%clk 0:00:17.2]} 140. Ke2
{[%clk 0:00:07.6]} 140... f3+ {[%clk 0:00:18.1]} 141. Kf2 {[%clk 0:00:08.1]}
141... Kd3 {[%clk 0:00:19]} 142. Kxf3 {[%clk 0:00:08.4]} 1/2-1/2

[Event "Early-Titled-Tuesday-Blitz-February-13-2024"]
[Site "Chess.com"]
[Date "2024.02.13"]
[Round "8"]
[White "OhanyanEminChess"]
[Black "lachesisQ"]
[Result "0-1"]
[WhiteElo "2807"]
[BlackElo "3049"]
[TimeControl "180+1"]
[EndTime "9:27:30 PST"]
[Termination "lachesisQ won by resignation"]

1. d4 {[%clk 0:03:00.9]} 1... g6 {[%clk 0:03:00.9]} 2. e4 {[%clk 0:02:59.6]}
2... Nf6 {[%clk 0:03:00.9]} 3. Nc3 {[%clk 0:02:59.7]} 3... d5 {[%clk 0:03:00.6]}
4. e5 {[%clk 0:02:59.5]} 4... Ne4 {[%clk 0:03:00.7]} 5. Nxe4 {[%clk 0:02:42.5]}
5... dxe4 {[%clk 0:03:00.6]} 6. Bc4 {[%clk 0:02:43.3]} 6... Bg7 {[%clk
0:03:00.2]} 7. Ne2 {[%clk 0:02:42.9]} 7... c5 {[%clk 0:02:59.2]} 8. e6 {[%clk
0:01:44.9]} 8... Bxe6 {[%clk 0:02:56.8]} 9. Bxe6 {[%clk 0:01:44.3]} 9... fxe6
{[%clk 0:02:57.7]} 10. dxc5 {[%clk 0:01:44.5]} 10... Qxd1+ {[%clk 0:02:50.5]}
11. Kxd1 {[%clk 0:01:45.4]} 11... Na6 {[%clk 0:02:50.8]} 12. Be3 {[%clk
0:01:34.8]} 12... Bxb2 {[%clk 0:02:49.3]} 13. Rb1 {[%clk 0:01:35]} 13... Be5
{[%clk 0:02:46.8]} 14. Rxb7 {[%clk 0:01:32.7]} 14... O-O-O+ {[%clk 0:02:45.5]}
0-1

[Event "Early-Titled-Tuesday-Blitz-February-13-2024"]
[Site "Chess.com"]
[Date "2024.02.13"]
[Round "8"]
[White "Schachmalanders"]
[Black "JonasEilenberg"]
[Result "0-1"]
[WhiteElo "2457"]
[BlackElo "2599"]
[TimeControl "180+1"]
[EndTime "9:28:23 PST"]
[Termination "JonasEilenberg won by resignation"]

1. e4 {[%clk 0:03:00.9]} 1... c5 {[%clk 0:02:58.8]} 2. Nc3 {[%clk 0:03:00.8]}
2... a6 {[%clk 0:02:56.3]} 3. g3 {[%clk 0:03:00]} 3... b5 {[%clk 0:02:56.7]} 4.
Bg2 {[%clk 0:03:00.5]} 4... Bb7 {[%clk 0:02:57]} 5. Nge2 {[%clk 0:03:00.3]} 5...
e6 {[%clk 0:02:57.2]} 6. d3 {[%clk 0:02:59.2]} 6... Nc6 {[%clk 0:02:50.5]} 7.
O-O {[%clk 0:02:56]} 7... g6 {[%clk 0:02:50.4]} 8. d4 {[%clk 0:02:54.5]} 8...
cxd4 {[%clk 0:02:49.4]} 9. Nxd4 {[%clk 0:02:54.7]} 9... Bg7 {[%clk 0:02:50.3]}
10. Ndxb5 {[%clk 0:02:52.9]} 10... axb5 {[%clk 0:02:43.8]} 11. Nxb5 {[%clk
0:02:52.4]} 11... Ba6 {[%clk 0:02:44.3]} 12. Nd6+ {[%clk 0:02:47.8]} 12... Ke7
{[%clk 0:02:37.6]} 13. Re1 {[%clk 0:02:45.2]} 13... Be5 {[%clk 0:02:37.2]} 14.
Bf4 {[%clk 0:02:43.4]} 14... Qc7 {[%clk 0:02:30.3]} 15. Bxe5 {[%clk 0:02:33.1]}
15... Nxe5 {[%clk 0:02:31.2]} 16. f4 {[%clk 0:02:33.4]} 16... Qxd6 {[%clk
0:02:21.8]} 17. fxe5 {[%clk 0:02:28.7]} 17... Qxd1 {[%clk 0:02:12.7]} 18. Raxd1
{[%clk 0:02:29.6]} 18... Rb8 {[%clk 0:02:11.5]} 19. Rd6 {[%clk 0:02:28.2]} 19...
Bc8 {[%clk 0:02:11.2]} 20. b3 {[%clk 0:02:26.9]} 20... f6 {[%clk 0:02:11.6]} 21.
c4 {[%clk 0:02:18.4]} 21... fxe5 {[%clk 0:02:11.1]} 22. c5 {[%clk 0:02:19.1]}
22... Nf6 {[%clk 0:02:10.4]} 23. Rc1 {[%clk 0:02:03.3]} 23... Bb7 {[%clk
0:02:10.1]} 24. b4 {[%clk 0:01:58.8]} 24... Bxe4 {[%clk 0:02:08.7]} 25. a3
{[%clk 0:01:56.3]} 25... Ra8 {[%clk 0:01:56.3]} 26. Rc3 {[%clk 0:01:50]} 26...
Bxg2 {[%clk 0:01:50.3]} 0-1